Cogmind - Beta 10.2 @@@ ROGUE MODE // 2020.12.27 @ 18:47:09 Player: SureStep Result: Self-destructed Performance ------------- Evolutions (1) 500 Regions Visited (2) 400 Robots Destroyed (21) 105 Value Destroyed (307) 307 Prototype IDs (5) 100 Alien Tech Used (0) 0 Bonus (18) 18 TOTAL SCORE: 1430 Bonus ------- High Alert Combat Kills 18 Cogmind --------- Core Integrity 400/400 Matter 54/300 Energy 100/100 System Corruption 0% Temperature Cool (9) Movement Flying (37) Location -9/Materials Parts ------- > --- POWER (2) -------- (None) > --- PROPULSION (3) --- Flight Unit Flight Unit > --- UTILITY (2) ------ Heat Sink Sensor Array > --- WEAPON (2) ------- Beam Rifle Beam Rifle > --- INVENTORY (4) ---- Light Ion Engine Beam Rifle Grenade Launcher Peak State ------------ > --- POWER ------------ Light Ion Engine > --- PROPULSION ------- Flight Unit Flight Unit > --- UTILITY ---------- Heat Sink Propulsion Shielding > --- WEAPON ----------- Beam Rifle Beam Rifle > --- INVENTORY -------- Light Ion Engine Targeting Computer Grenade Launcher [Rating: 9] Favorites ----------- Power Light Ion Engine Engine Light Ion Engine Propulsion Hover Unit Wheel Wheel Hover Unit Hover Unit Flight Unit Flight Unit Utility Small Storage Unit Device Heat Sink Storage Small Storage Unit Processor Seismic Analyzer Protection Propulsion Shielding Weapon Grenade Launcher Energy Gun Beam Rifle Ballistic Gun Light Assault Rifle Launcher Grenade Launcher Build | -11 -10 -9 ------- Run | Scr Mat Mat Slots Evolved 2 | . . 2 Power 1 | . . 1 Propulsion 1 | . . 1 Utility . | . . . Weapon . | . . . Parts Attached 22 | 6 15 1 Power 1 | 1 . . Engine 1 | 1 . . Core . | . . . Reactor . | . . . Propulsion 7 | 2 5 . Treads . | . . . Leg . | . . . Wheel 2 | 2 . . Hover 3 | . 3 . Flight 2 | . 2 . Utility 5 | 2 3 . Device 2 | . 2 . Storage 1 | 1 . . Processor 1 | 1 . . Hackware . | . . . Protection 1 | . 1 . Artifact . | . . . Weapon 9 | 1 7 1 Energy Gun 3 | . 2 1 Energy Cannon . | . . . Ballistic Gun 3 | 1 2 . Ballistic Cannon . | . . . Launcher 3 | . 3 . Special Weapon . | . . . Impact Weapon . | . . . Slashing Weapon . | . . . Piercing Weapon . | . . . Special Melee Weapon . | . . . Unidentified Prototypes . | . . . Parts Lost 3 | . 1 2 Power 1 | . . 1 Propulsion . | . . . Utility . | . . . Weapon 2 | . 1 1 Highest Loss Streak 2 | . 1 2 Average Slot Usage (%) 93 | . 98 77 Engine 13 | . 14 11 Wheel 2 | . 3 . Hover 13 | . 17 . Flight 10 | . 6 22 Device 9 | . 5 22 Storage 8 | . 10 . Processor 2 | . 3 . Protection 5 | . 7 . Energy Gun 5 | . 3 11 Ballistic Gun 8 | . 11 . Launcher 12 | . 13 10 Naked Turns . | . . . Heaviest Build 12 | 8 12 11 Greatest Support 20 | 20 20 8 Greatest Overweight (x) 1 | . 1 1 Average Overweight (x) . | . . 1 Largest Inventory Capacity 6 | 6 6 4 Average Capacity 5 | 5 5 4 Most Carried 6 | 5 6 4 Average Carried 4 | 2 4 3 Final Capacity 6 | 6 4 4 Final Carried 4 | 4 4 3 Class Distribution -------------------- 100% | Mutant Dominant Class ---------------- Mutant | -10/Materials Mutant | -9/Materials Resources | -11 -10 -9 ----------- Run | Scr Mat Mat Matter Collected 420 | 273 147 . Remotely . | . . . Salvage Created 314 | 82 206 26 Parts 41 | 4 33 4 Haulers Intercepted 1 | . 1 . Recyclers Shooed 1 | 1 . . Parts Field Recycled . | . . . Retrieved Matter . | . . . Parts Self-Destructed . | . . . Prevented . | . . . Kills | -11 -10 -9 ------- Run | Scr Mat Mat Combat Hostiles Destroyed 12 | . 12 . Guns 2 | . 2 . AOE 10 | . 10 . Classes Destroyed 9 | 2 7 . Worker 1 | . 1 . Builder 1 | . 1 . Tunneler 1 | 1 . . Hauler 1 | . 1 . Recycler 1 | 1 . . Operator 1 | . 1 . Watcher 3 | . 2 1 Swarmer 9 | . 9 . Grunt 3 | . 3 . Best Kill Streak 5 | 2 5 1 Combat Bots Only 3 | . 3 . Max Kills in Single Turn 3 | 1 3 1 Gunslinging . | . . . Exploded 3 | . 3 . Melee . | . . . Uniques/NPCs Destroyed . | . . . Combat | -11 -10 -9 -------- Run | Scr Mat Mat Damage Taken 317 | . 274 43 Core 76 | . 76 . Absorbed by Shields . | . . . Core Remaining (%) 84 | 100 69 . Volleys Fired 75 | 13 49 13 Largest 2 | 1 2 2 Hottest 86 | 20 86 86 Shots Fired 95 | 13 68 14 Gun 75 | 13 49 13 Cannon . | . . . Launcher 20 | . 19 1 Special . | . . . Kinetic 61 | 13 48 . Thermal 14 | . 1 13 Explosive 20 | . 19 1 Electromagnetic . | . . . Robot Hit Streak 6 | 6 6 2 Robot Miss Streak 5 | 1 5 4 Penetration Max . | . . . Secondary Targets . | . . . Shots Hit Robots 46 | 10 34 2 Core Hits 36 | 5 30 1 Critical Hits . | . . . Critical Kills . | . . . Critical Parts Destroyed . | . . . Melee Attacks . | . . . Impact . | . . . Slashing . | . . . Piercing . | . . . Sneak Attacks . | . . . Combat Hostiles . | . . . Follow-up Attacks . | . . . Damage Inflicted 1492 | 88 1365 39 Guns 390 | 88 273 29 Cannons . | . . . Explosions 1102 | . 1092 10 Melee . | . . . Ramming . | . . . Kinetic 361 | 88 273 . Thermal 164 | . 135 29 Explosive 967 | . 957 10 Electromagnetic . | . . . Impact . | . . . Slashing . | . . . Piercing . | . . . Highest Corruption . | . . . Average Corruption . | . . . Corruption Purged . | . . . Overload Shots . | . . . Overflow Damage 12 | . 12 . Projectiles . | . . . Explosions 12 | . 12 . Melee . | . . . Knockbacks . | . . . Impact . | . . . Kinetic . | . . . Secondary . | . . . Self-Inflicted Damage 87 | . 87 . Shots 5 | . 5 . Rammed . | . . . Targets Rammed . | . . . Kicked . | . . . Crushed . | . . . Highest Temperature 28 | . 28 12 Average Temperature 8 | . 8 10 Received Heat Transfer 66 | . 42 24 Siege Activations . | . . . Robots Corrupted . | . . . Combat Hostiles . | . . . Parts Fried . | . . . Impact Corruptions . | . . . Robots Melted . | . . . Combat Hostiles . | . . . Parts Melted . | . . . Heat Transferred 174 | . 100 74 Parts Sabotaged . | . . . Parts Stolen . | . . . Parts Stripped . | . . . Power Chain Reactions . | . . . Missiles Intercepted . | . . . Alert | -11 -10 -9 ------- Run | Scr Mat Mat Peak Influence 516 | 10 516 175 Initial 133 | . 6 133 Average 209 | 4 261 149 Maximum Alert Level 2 | . 2 . Low Security (%) 60 | 100 41 100 Level 1 20 | . 29 . Level 2 19 | . 28 . Level 3 . | . . . Level 4 . | . . . Level 5 . | . . . High Security . | . . . Max Security . | . . . Squads Dispatched 3 | . 2 1 Investigation 2 | . 2 . Extermination . | . . . Reinforcement 1 | . . 1 Assault . | . . . Garrison . | . . . Intercept . | . . . Construction Impeded . | . . . Haulers Reinforced . | . . . Stealth | -11 -10 -9 --------- Run | Scr Mat Mat Distress Signals 3 | . 2 1 Communications Jammed . | . . . Distress Signals . | . . . Times Spotted 21 | . 17 4 Peak Tracking Total 6 | . 6 4 Tactical Retreats 3 | . 3 . Traps | -11 -10 -9 ------- Run | Scr Mat Mat Traps Triggered 1 | . 1 . Indirectly . | . . . Trap Hack Attempts . | . . . Triggered . | . . . Disarmed . | . . . Reprogrammed . | . . . Reused . | . . . Traps Extracted . | . . . Installed . | . . . Triggered . | . . . Machines | -11 -10 -9 ---------- Run | Scr Mat Mat Machines Disabled 4 | . 3 1 Max in Single Turn 2 | . 2 1 Machines Sabotaged . | . . . Garrisons Compromised . | . . . Overloaded Fab Kills . | . . . Fab Network Shutdowns . | . . . Hacking | -11 -10 -9 --------- Run | Scr Mat Mat Machines Accessed 7 | . 6 1 Terminals 7 | . 6 1 Fabricators . | . . . Repair Stations . | . . . Recycling Units . | . . . Scanalyzers . | . . . Garrison Access . | . . . Total Hacks 21 | . 19 2 Successful 10 | . 9 1 Failed 11 | . 10 1 Catastrophic 1 | . 1 . Database Lockouts . | . . . Manual . | . . . Terminals 21 | . 19 2 Fabricators . | . . . Repair Stations . | . . . Recycling Units . | . . . Scanalyzers . | . . . Garrison Access . | . . . Terminal Hacks 10 | . 9 1 Prototype ID Bank 2 | . 2 . Emergency Access Points 1 | . 1 . Locate Traps 3 | . 3 . Transport Status 1 | . . 1 Hauler Manifests 2 | . 2 . Registered Components 1 | . 1 . Fabricator Hacks . | . . . Repair Station Hacks . | . . . Recycling Unit Hacks . | . . . Scanalyzer . | . . . Garrison Access Hacks . | . . . Unauthorized Hacks . | . . . Terminals . | . . . Fabricators . | . . . Repair Stations . | . . . Recycling Units . | . . . Scanalyzers . | . . . Garrison Access . | . . . Data Cores Recovered 1 | . 1 . Used 1 | . 1 . Hacking Detections 5 | . 4 1 Full Trace Events 3 | . 3 . Feedback Events . | . . . Feedback Blocked . | . . . Robot Schematics Acquired . | . . . Robots Built . | . . . Matter . | . . . Time . | . . . Total Robot Build Rating . | . . . Part Schematics Acquired . | . . . Parts Built . | . . . Matter . | . . . Time . | . . . Total Part Build Rating . | . . . Parts Repaired . | . . . Time . | . . . Parts Recycled . | . . . Recycled Matter . | . . . Retrieved Matter . | . . . Retrieved Components . | . . . Parts Scanalyzed . | . . . Part Schematics Acquired . | . . . Parts Damaged . | . . . Bothacking | -11 -10 -9 ------------ Run | Scr Mat Mat Used RIF Installer . | . . . Robots Hacked . | . . . Non-combat . | . . . Combat . | . . . Robot Hacks Applied . | . . . Relay Couplers Released . | . . . Robots Rewired . | . . . Allies Hacked . | . . . Hacks Repelled . | . . . Allies | -11 -10 -9 -------- Run | Scr Mat Mat Total Allies . | . . . Largest Group . | . . . Highest-Rated Group . | . . . Highest-Rated Ally . | . . . Total Orders . | . . . Ally Attacks . | . . . Total Damage . | . . . Kills . | . . . Allies Corrupted . | . . . Allies Melted . | . . . Intel | -11 -10 -9 ------- Run | Scr Mat Mat Robot Analysis Total . | . . . Derelict Logs Recovered . | . . . Drone Launches . | . . . Drone Recoveries . | . . . Exploration | -11 -10 -9 ------------- Run | Scr Mat Mat Turns Passed 689 | 76 471 142 Spaces Moved 576 | 50 429 97 Core 11 | 11 . . Treads . | . . . Legs . | . . . Wheels 68 | 39 29 . Hover 312 | . 312 . Flight 185 | . 88 97 Fastest Speed 37 | 50 37 117 Average Speed 77 | 73 69 117 Slowest Speed 117 | 80 117 117 Overloaded Moves . | . . . Propulsion Burnouts . | . . . Robots Hopped . | . . . Cave-ins Triggered . | . . . Exploration Rate (%) 21 | 3 51 11 Regions Visited 2 Branch Regions . Pre-discovered Areas . | . . . Known Exits Taken . | . . . Unknown Exits Taken 2 | 1 1 . Scrap Searched . | . . . Spaces Dug . | . . . Terrain Destroyed 141 | . 135 6 Melee . | . . . Projectile . | . . . AOE 141 | . 135 6 Terrain Rammed . | . . . Walls Destroyed . | . . . Machines Disabled . | . . . Actions | -11 -10 -9 --------- Run | Scr Mat Mat Total 745 | 78 556 111 Wait 17 | . 17 . Move 574 | 49 428 97 Hop . | . . . Pick Up 31 | 10 21 . Fast Attach . | . . . Attach 22 | 6 15 1 Detach 8 | . 8 . Swap . | . . . Drop 18 | . 18 . Fire 75 | 13 49 13 Melee . | . . . Ram . | . . . Kick . | . . . Crush . | . . . Escape Stasis . | . . . Rewire . | . . . Trap . | . . . Miscellaneous . | . . . Route ------- -11/Scrapyard -10/Materials (discovered 3 exits: *Mat / [*Min x2]) -9/Materials History --------- Turn | Location | Event 8 | -11/Scrapyard | Discovered new exit (range 15) 77 | -11/Scrapyard | Entered Materials 137 | -10/Materials | Discovered new exit (range 15) 320 | -10/Materials | Build established: Mutant 412 | -10/Materials | Discovered new exit (range 14) 471 | -10/Materials | Discovered new exit (range 15) 548 | -10/Materials | Entered another Materials area 548 | -9/Materials | Evolved 2 slots: Power x1, Propulsion x1 690 | -9/Materials | Self-destructed Last Messages --------------- K-01 Serf collects debris. Triggered Explosive Trap. An explosion rips through the floor. The unstable cave ceiling collapses. Acquired Grenade Launcher. PARAMETERS=POWER_1,PROPULSION_1 LOCATION=UNKNOWN GOAL=ESCAPE Material Processor disabled. Connecting with Terminal... Current location identified: Materials >>Enumerate(Transport) Retrieving latest reported positions... Found 6 active transport squads. Downloaded coordinate data. W-16 Scout sends out distress signal. ALERT: Hostiles spotted, dispatching reinforcements to Terminal M004. W-16 Scout destroyed. Grenade Launcher destroyed. Lgt. Ion Engine destroyed. Map ----- +----------------------------------------------------+ | ### + #?# #??? | | ??####### #?# ## #?# #??? | | ????????# #?# ## #######+##?? | | ????????# #?# ## # #?? | | ???????## ### ## # #?? | | ???????# ###+### # #?? | | ???????# # """ #?? | | ???????# T + """"" #?? | | ???????# # """"" #?? | | ???????# ###+### # """"" #?? | | ???????######## # # """ #?? | | ??????????????# # # !#?? | | ??????????????# # ##########?? | | ??????????????# # #??????????? | | ??????????????# + #??????????? | | ??????????????# # #??????????? | | ??????????????# # #??????????? | | ??????????????# # ####???????? | | ??????????????# + #???????? | | ??????????????########### #???????? | | ????????????????????????# #???????? | | ????????????????????????# #???????? | | ?????????????????????####;###?????? | | ?????????????????????# #?????? | | ?????????????????????# #?????? | | ?????????????????????# @ #?????? | | ?????????????? ! = #?????? | | ???????????# g /Y !%=#?????? | | ???????????#####+## * #?????? | | ??????????????????##### ##g#?????? | | ?????????????????????? ! ?? #?????? | | ????????????????????? ?? #?????? | | ????????????????????? " ??##?????? | | ???????????????????? T ?????????? | | ???????????????????" " ?????????? | | ??????????????????? ?????????? | | ?????????????????? ? ?????????? | | ??????????????????##?## ??????????? | | ??????????????????????# ??????????? | | ??????????????????????# ??????????? | | ??????????????????????? ??????????? | | ??????????????????????????????????? | | ??????????????????????????????????? | | ??????????????????????????????????? | | ??????????????????????????????????? | | ??????????????????????????????????? | | ??????????????????????????????????? | | ??????????????????????????????????? | | ??????????????????????????????????? | | ??????????????????????????????????? | +----------------------------------------------------+ Best States ------------- Heat Dissipation 38 Energy Generation 10 Energy Capacity 125 Matter Stores 290 Matter Capacity 300 Sight Range 16 Robot Scan Range 10 Terrain Scan Density 60 Propulsion Shielding 33 Evasion (%) 53 Item Schematics ----------------- None Robot Schematics ------------------ None Fabricated ------------ Nothing Alien Tech Used ----------------- None Achievements -------------- None Challenges ------------ None Game ------ Seed SuperchargedPulseRifle Manual? 0 Play Time 00:19:17 Cumulative 25.6 hours Start 2020.12.27 @ 18:20:04 End 2020.12.27 @ 18:47:09 Sessions 1 Manual Loads 0 Difficulty Rogue Special Mode None Game No. 34 Rogue 34 Adventurer 0 Explorer 0 Win Type - Total 0 Types 0/0/0/0/0/0/0/0/0 Lore% 10 Gallery% 16 Achievement% 15 Wizard Run 0 Options --------- ASCII 0 Keyboard 0 Movement Mouse Keybinds 0 Fullscreen 1 Font 18/SmallcapsGlow Map View 76x50 Tactical HUD 0 Map Filters NONE Filters NONE Steam 1 RUN: 0331bce1-4a87-4841-a7c6-fc7b9dd9279a